bitfinex/quotes_BTCUSD_20250314
["timestamp","ask_amount","ask_price","bid_price","bid_amount"]
[1741933070963,0.0003382,82191.0,82184.0,0.01454085]
[1741933071385,0.0003382,82191.0,82186.0,0.01454085]
[1741933071853,0.0003382,82191.0,82184.0,0.01454085]
[1741933072081,0.0003382,82191.0,82188.0,0.01454085]
[1741933072527,0.0003382,82191.0,82183.0,0.1267]
[1741933072528,0.0003382,82191.0,82186.0,0.01454085]
[1741933072741,0.0003382,82191.0,82190.0,0.01454085]
[1741933073187,0.0003382,82191.0,82190.0,0.01214565]
[1741933073427,0.0003382,82191.0,82184.0,0.01454085]
[1741933073886,0.0003382,82191.0,82186.0,0.01454085]
[1741933074504,0.0003382,82191.0,82188.0,0.01454085]
[1741933074845,0.0003382,82191.0,82184.0,0.01454085]
[1741933075050,0.0003382,82191.0,82186.0,0.01454085]
[1741933075542,0.0003382,82191.0,82188.0,0.01454085]
[1741933075920,0.0003382,82191.0,82184.0,0.01454085]
[1741933076329,0.0003382,82191.0,82186.0,0.01454085]
[1741933076897,0.0003382,82191.0,82185.0,0.01230814]
[1741933076898,0.0003382,82191.0,82185.0,0.0001691]
[1741933077068,0.0003382,82191.0,82188.0,0.01454085]
[1741933077265,0.0003382,82191.0,82185.0,0.0001691]
[1741933077477,0.0003382,82191.0,82186.0,0.01213904]
[1741933077783,0.0003382,82191.0,82185.0,0.0001691]
[1741933077926,0.0003382,82191.0,82188.0,0.01454085]
[1741933078377,0.0003382,82191.0,82190.0,0.01454085]
[1741933079301,0.0003382,82191.0,82185.0,0.0001691]
[1741933079636,0.0003382,82191.0,82187.0,0.01454085]
[1741933080053,0.0003382,82191.0,82189.0,0.01454085]
[1741933080760,0.0003382,82191.0,82185.0,0.0001691]
[1741933081181,0.012167,82187.0,82186.0,0.01213904]
[1741933081563,0.255517,82186.0,82185.0,0.0001691]
[1741933083447,0.303906,82190.0,82185.0,0.0001691]
[1741933083626,0.243349,82187.0,82185.0,0.0001691]
[1741933084014,0.255516,82187.0,82185.0,0.0001691]
[1741933084449,0.2745923,82187.0,82185.0,0.0001691]
[1741933084648,0.012167,82186.0,82185.0,0.0001691]
[1741933088225,0.012167,82187.0,82185.0,0.0001691]
[1741933088823,0.255513,82188.0,82185.0,0.0001691]
[1741933089021,0.060566,82190.0,82185.0,0.0001691]
[1741933089223,0.0003382,82191.0,82185.0,0.0001691]
[1741933089654,0.0003382,82191.0,82187.0,0.01454085]
[1741933090038,0.01941287,82191.0,82189.0,0.01454085]
[1741933090887,0.01941287,82191.0,82185.0,0.0001691]
[1741933091093,0.01941287,82191.0,82187.0,0.01454085]
[1741933091589,0.01941287,82191.0,82185.0,0.0001691]
[1741933091791,0.01941287,82191.0,82189.0,0.01454085]
[1741933092424,0.01941287,82191.0,82185.0,0.0001691]
[1741933092823,0.01941287,82191.0,82187.0,0.01454085]
[1741933093184,0.01941287,82191.0,82185.0,0.0001691]
[1741933093388,0.01941287,82191.0,82189.0,0.01454085]
[1741933093771,0.01941287,82191.0,82185.0,0.0001691]
[1741933094177,0.01941287,82191.0,82187.0,0.01454085]
[1741933094615,0.01941287,82191.0,82185.0,0.0001691]
[1741933094795,0.01941287,82191.0,82189.0,0.01454085]
[1741933095215,0.01941287,82191.0,82185.0,0.0001691]
[1741933095647,0.01941287,82191.0,82187.0,0.01454085]
[1741933096032,0.01941287,82191.0,82185.0,0.0001691]
[1741933096200,0.01941287,82191.0,82189.0,0.01454085]
[1741933097316,0.01941287,82191.0,82185.0,0.0001691]
[1741933097731,0.01941287,82191.0,82187.0,0.01454085]
[1741933098247,0.01941287,82191.0,82188.0,0.01214008]
[1741933098459,0.01941287,82191.0,82189.0,0.01454085]
[1741933101278,0.01941287,82191.0,82185.0,0.0001691]
[1741933101669,0.01941287,82191.0,82187.0,0.01454085]
[1741933101873,0.01941287,82191.0,82185.0,0.0001691]
[1741933102248,0.01941287,82191.0,82187.0,0.01454085]
[1741933102484,0.01941287,82191.0,82185.0,0.0001691]
[1741933102686,0.01941287,82191.0,82187.0,0.01454085]
[1741933103065,0.01941287,82191.0,82188.0,0.01214008]
[1741933103264,0.01941287,82191.0,82189.0,0.01454085]
[1741933103689,0.01941287,82191.0,82185.0,0.0001691]
[1741933103850,0.01941287,82191.0,82187.0,0.01454085]
[1741933104288,0.01941287,82191.0,82189.0,0.01454085]
[1741933105056,0.01941287,82191.0,82185.0,0.0001691]
[1741933105261,0.01941287,82191.0,82187.0,0.01454085]
[1741933105651,0.01941287,82191.0,82189.0,0.01454085]
[1741933107085,0.01941287,82191.0,82185.0,0.0001691]
[1741933107272,0.01941287,82191.0,82187.0,0.01454085]
[1741933107801,0.01941287,82191.0,82189.0,0.01454085]
[1741933108202,0.01941287,82191.0,82185.0,0.0001691]
[1741933108744,0.01941287,82191.0,82187.0,0.01454085]
[1741933109239,0.01941287,82191.0,82185.0,0.0001691]
[1741933109445,0.01941287,82191.0,82189.0,0.01454085]
[1741933110562,0.01941287,82191.0,82185.0,0.0001691]
[1741933110915,0.01941287,82191.0,82187.0,0.01454085]
[1741933111254,0.01941287,82191.0,82187.0,0.01470995]
[1741933111413,0.01941287,82191.0,82187.0,0.0001691]
[1741933111615,0.01941287,82191.0,82189.0,0.01454085]
[1741933112042,0.01941287,82191.0,82189.0,0.00121668]
[1741933112193,0.0003382,82191.0,82190.0,0.09685733]
[1741933112408,0.0003382,82191.0,82190.0,0.10900166]
[1741933113037,0.0003382,82191.0,82190.0,0.44408518]
[1741933113357,0.0003382,82191.0,82190.0,0.42954433]
[1741933113550,0.0003382,82191.0,82190.0,0.44408518]
[1741933115219,0.01941219,82191.0,82190.0,0.44608518]
[1741933116729,0.01941219,82191.0,82190.0,0.02868518]
[1741933117160,0.01941219,82191.0,82190.0,0.01654085]
[1741933118438,0.01941219,82191.0,82190.0,0.02867892]
[1741933119820,0.27491319,82191.0,82190.0,0.01654085]
[1741933121832,0.3056392,82191.0,82190.0,0.002]
[1741933122032,0.6056392,82191.0,82190.0,0.002]
[1741933122658,0.255511,82188.0,82187.0,0.0001691]
[1741933124310,0.3,82190.0,82187.0,0.0001691]
[1741933124747,0.3,82190.0,82188.0,0.01454085]
[1741933125021,0.31907661,82190.0,82188.0,0.01454085]
[1741933125426,0.31907661,82190.0,82187.0,0.0001691]
[1741933126084,0.3056392,82191.0,82187.0,0.0001691]
[1741933126473,0.0501382,82191.0,82187.0,0.0001691]
[1741933128893,0.06921446,82191.0,82187.0,0.0001691]
[1741933134275,0.01941446,82191.0,82187.0,0.0001691]
[1741933134451,0.0003382,82191.0,82187.0,0.0001691]
[1741933135621,0.0003382,82191.0,82188.0,0.01454085]
[1741933135778,0.243307,82201.0,82188.0,0.01454085]
[1741933135980,0.19657339,82198.0,82190.0,0.01454085]
[1741933136567,0.02688342,82198.0,82190.0,0.01454085]
[1741933136882,0.02688342,82198.0,82188.0,0.01454085]
[1741933137101,0.02688342,82198.0,82187.0,0.0001691]
[1741933137468,0.01907467,82196.0,82187.0,0.0001691]
[1741933138397,0.01907467,82196.0,82188.0,0.01454085]
[1741933139006,0.01907467,82196.0,82187.0,0.0001691]
[1741933139424,0.0098309,82187.0,82185.0,0.0001691]
[1741933139949,0.0098309,82187.0,82186.0,0.02668835]
[1741933140154,0.02890599,82187.0,82186.0,0.02668835]
[1741933141100,0.02890599,82187.0,82186.0,0.02868835]
[1741933144359,0.28441999,82187.0,82186.0,0.02868835]
[1741933144623,0.28441999,82187.0,82186.0,0.0141475]
[1741933144823,0.28441999,82187.0,82186.0,0.002]
[1741933145442,0.012167,82186.0,82185.0,0.0001691]
[1741933146648,0.28441999,82187.0,82185.0,0.0001691]
[1741933147069,0.28741999,82187.0,82185.0,0.0001691]
[1741933147449,0.2653449,82187.0,82185.0,0.0001691]
[1741933147808,0.2653449,82187.0,82186.0,0.01454085]
[1741933148207,0.2653449,82187.0,82185.0,0.0001691]
[1741933148640,0.2653449,82187.0,82186.0,0.01454085]
[1741933149922,0.2653449,82187.0,82185.0,0.0001691]
[1741933150244,0.2653449,82187.0,82186.0,0.002]
[1741933150446,0.28442114,82187.0,82186.0,0.002]
[1741933150905,0.28442314,82187.0,82185.0,0.0001691]
[1741933151309,0.28442314,82187.0,82186.0,0.01454085]
[1741933152647,0.04107414,82187.0,82186.0,0.01454085]
[1741933153005,0.04107414,82187.0,82185.0,0.0001691]
[1741933153213,0.04107414,82187.0,82186.0,0.002]
[1741933153418,0.02890714,82187.0,82186.0,0.002]
[1741933153627,0.04107414,82187.0,82186.0,0.002]
[1741933153832,0.255517,82186.0,82185.0,0.0001691]
[1741933154263,0.255517,82186.0,82185.0,0.01670995]
[1741933154640,0.255517,82186.0,82185.0,0.01470995]
[1741933156482,0.02890714,82187.0,82186.0,0.01454085]
[1741933156709,0.04107414,82187.0,82186.0,0.01454085]
[1741933156909,0.255517,82186.0,82185.0,0.0001691]
[1741933157288,0.255517,82186.0,82185.0,0.0021691]
[1741933163669,0.255517,82186.0,82185.0,0.0001691]
[1741933164594,0.257517,82186.0,82185.0,0.0001691]
[1741933165000,0.256517,82186.0,82185.0,0.0001691]
[1741933165359,0.257517,82186.0,82185.0,0.0001691]
[1741933171451,0.24335,82186.0,82185.0,0.0001691]
[1741933172219,0.255517,82186.0,82185.0,0.0001691]
[1741933174581,0.27459398,82186.0,82185.0,0.0001691]
[1741933178046,0.59690624,82186.0,82185.0,0.0001691]
[1741933182270,0.57459398,82186.0,82185.0,0.0001691]
[1741933182504,0.65069398,82186.0,82185.0,0.0001691]
[1741933182762,0.70019398,82186.0,82185.0,0.0001691]
[1741933182998,0.681117,82186.0,82185.0,0.0001691]
[1741933183721,0.686117,82186.0,82185.0,0.0001691]
[1741933183961,0.80607789,82186.0,82185.0,0.0001691]
[1741933184379,0.81007789,82186.0,82185.0,0.0001691]
[1741933185847,0.80507789,82186.0,82185.0,0.0001691]
[1741933186080,0.91457875,82186.0,82185.0,0.0001691]
[1741933186318,0.91457875,82186.0,82150.0,0.0479]
[1741933186319,0.55556,82172.0,82150.0,0.0479]
[1741933186526,0.55556,82172.0,82171.0,0.00021018]
[1741933187562,0.55756,82172.0,82171.0,0.00021018]
[1741933187799,0.57664035,82172.0,82171.0,0.00021018]
[1741933188744,0.255576,82167.0,82157.0,0.01454085]
[1741933188942,0.255576,82167.0,82166.0,0.00025407]
[1741933190081,0.255576,82167.0,82166.0,0.01579492]
[1741933191067,0.01217,82167.0,82166.0,0.01579492]
[1741933191385,0.555576,82167.0,82166.0,0.01579492]
[1741933191819,0.557576,82167.0,82166.0,0.01579492]
[1741933192595,0.557576,82167.0,82166.0,0.01479492]
[1741933192911,0.560576,82167.0,82166.0,0.01479492]
[1741933206848,0.305,82167.0,82166.0,0.01479492]
[1741933208158,0.3,82167.0,82166.0,0.01479492]
[1741933208363,0.3,82167.0,82166.0,0.02633394]
[1741933208592,0.303,82167.0,82166.0,0.01479492]
[1741933208769,0.302,82167.0,82166.0,0.01479492]
[1741933208969,0.3,82167.0,82166.0,0.01479492]
[1741933209174,0.00910699,82169.0,82167.0,0.01454085]
[1741933209388,0.312169,82175.0,82167.0,0.01354085]
[1741933209813,0.312169,82175.0,82167.0,0.0769]
[1741933209814,0.3,82175.0,82167.0,0.0769]
[1741933210083,0.3,82175.0,82168.0,0.0487]
[1741933210272,0.3,82175.0,82168.0,0.05923902]
[1741933210807,0.303,82175.0,82168.0,0.05923902]
[1741933210965,0.303,82175.0,82168.0,0.06404694]
[1741933211150,0.3,82175.0,82168.0,0.06404694]
[1741933211338,0.31211678,82175.0,82169.0,0.01454085]
[1741933211737,0.31211678,82175.0,82169.0,0.01254085]
[1741933212101,0.01211678,82175.0,82169.0,0.01254085]
[1741933212423,0.01211678,82175.0,82167.0,0.0769]
[1741933212424,0.01511678,82175.0,82167.0,0.0769]
[1741933212648,0.31511678,82175.0,82167.0,0.0769]
[1741933213063,0.31211678,82175.0,82167.0,0.0769]
[1741933213436,0.31111678,82175.0,82167.0,0.0769]
[1741933213605,0.31411678,82175.0,82168.0,0.01454085]
[1741933213811,0.31111678,82175.0,82168.0,0.01454085]
[1741933214032,0.01907907,82174.0,82168.0,0.01454085]
[1741933216366,0.02107907,82174.0,82168.0,0.01454085]
[1741933216743,0.02307907,82174.0,82168.0,0.01454085]
[1741933217314,0.03524807,82174.0,82168.0,0.01454085]
[1741933217511,0.3,82173.0,82168.0,0.01454085]
[1741933217831,0.555559,82173.0,82168.0,0.01454085]
[1741933218853,0.314169,82173.0,82168.0,0.01454085]
[1741933219057,0.243391,82172.0,82168.0,0.01454085]
[1741933220983,0.244391,82172.0,82168.0,0.01454085]
[1741933221997,0.245391,82172.0,82168.0,0.01454085]
[1741933222156,0.25756,82172.0,82168.0,0.01454085]
[1741933223481,0.002,82172.0,82168.0,0.01454085]
[1741933223869,0.002,82172.0,82166.0,0.00025407]
[1741933224253,0.243396,82171.0,82166.0,0.00025407]
[1741933224453,0.002,82172.0,82166.0,0.00025407]
[1741933224697,0.244393,82172.0,82166.0,0.00025407]
[1741933225006,0.245394,82172.0,82166.0,0.00025407]
[1741933225304,0.001,82172.0,82166.0,0.00025407]
[1741933225463,0.244393,82172.0,82166.0,0.00025407]
[1741933225664,0.245393,82172.0,82166.0,0.00025407]
[1741933226521,0.002,82172.0,82168.0,0.01454085]
[1741933226727,0.002,82172.0,82170.0,0.01454085]
[1741933227246,0.002,82172.0,82171.0,0.01634282]
[1741933227390,0.001,82172.0,82171.0,0.03088367]
[1741933227795,0.002,82172.0,82171.0,0.03088367]
[1741933228013,0.001,82172.0,82171.0,0.03088367]
[1741933228620,0.0003384,82174.0,82172.0,0.01454085]
[1741933228802,0.0003384,82174.0,82173.0,0.0776]
[1741933229220,0.0003384,82174.0,82173.0,0.09160813]
[1741933229817,0.01941676,82174.0,82173.0,0.09160813]
[1741933230022,0.01941676,82174.0,82173.0,0.09060813]
[1741933230462,0.02041676,82174.0,82173.0,0.09060813]
[1741933230617,0.02141676,82174.0,82173.0,0.10514898]
[1741933234975,0.02041676,82174.0,82173.0,0.10514898]
[1741933235124,0.01941676,82174.0,82173.0,0.10514898]
[1741933240414,0.01941676,82174.0,82173.0,0.02854898]
[1741933240560,0.01941676,82174.0,82173.0,0.01400813]
[1741933240763,0.0003384,82174.0,82173.0,0.02854898]
[1741933240932,0.0003384,82174.0,82173.0,0.01454085]
[1741933241755,0.0013384,82174.0,82173.0,0.01454085]
[1741933241986,0.0023384,82174.0,82173.0,0.01454085]
[1741933242438,0.0013384,82174.0,82173.0,0.01454085]
[1741933243421,0.0013384,82174.0,82173.0,0.01471005]
[1741933243794,0.01941748,82174.0,82173.0,0.01471005]
[1741933244731,0.0003384,82174.0,82173.0,0.01471005]
[1741933248034,0.01941752,82174.0,82173.0,0.01471005]
[1741933253566,0.03158652,82174.0,82173.0,0.01471005]
[1741933262371,0.012169,82175.0,82174.0,0.01454085]
[1741933262587,0.255554,82175.0,82174.0,0.01454085]
[1741933262771,0.255554,82175.0,82173.0,0.0001692]
[1741933263873,0.26475565,82176.0,82173.0,0.0001692]
[1741933264252,0.00920365,82176.0,82173.0,0.0001692]
[1741933264556,0.255547,82177.0,82173.0,0.0001692]
[1741933265079,0.00901601,82177.0,82173.0,0.01471005]
[1741933265571,0.54337,82180.0,82173.0,0.01471005]
[1741933265833,0.001,82177.0,82173.0,0.01471005]
[1741933266588,0.244378,82177.0,82173.0,0.0001692]
[1741933266916,0.0003384,82176.0,82173.0,0.0001692]
[1741933269197,0.2437194,82176.0,82173.0,0.0001692]
[1741933269797,0.0003384,82176.0,82173.0,0.0001692]
[1741933281030,0.012168,82178.0,82173.0,0.0001692]
[1741933281432,0.01907925,82176.0,82173.0,0.0001692]
[1741933281670,0.255543,82178.0,82173.0,0.0001692]
[1741933282124,0.001,82178.0,82173.0,0.0001692]
[1741933284112,0.002,82178.0,82173.0,0.0001692]
[1741933284321,0.001,82178.0,82173.0,0.0001692]
[1741933284521,0.01907854,82177.0,82173.0,0.0001692]
[1741933286814,0.01907854,82177.0,82175.0,0.01454085]
[1741933292456,0.01941694,82177.0,82175.0,0.01454085]
[1741933295505,0.01941694,82177.0,82176.0,0.02915568]
[1741933297539,0.01941694,82177.0,82176.0,0.01454085]
[1741933303171,0.01941694,82177.0,82176.0,0.02622826]
[1741933305685,0.01941694,82177.0,82176.0,0.01454085]
[1741933310209,0.01941694,82177.0,82176.0,0.02623291]
[1741933312074,0.01941694,82177.0,82176.0,0.01454085]
[1741933313959,0.01941694,82177.0,82176.0,0.02623291]
[1741933315859,0.01941694,82177.0,82176.0,0.01454085]
[1741933317598,0.01941694,82177.0,82176.0,0.02622949]
[1741933317834,0.01941694,82177.0,82176.0,0.01454085]
[1741933319474,0.01941694,82177.0,82176.0,0.01471005]
[1741933323118,0.0003384,82177.0,82176.0,0.01471005]
[1741933330590,0.312167,82185.0,82177.0,0.01454085]
[1741933330814,0.00925097,82183.0,82177.0,0.01454085]
[1741933330983,0.01907835,82181.0,82176.0,0.0001692]
[1741933331180,0.0003384,82178.0,82176.0,0.0001692]
[1741933335280,0.012168,82177.0,82176.0,0.0001692]
[1741933336111,0.436968,82177.0,82176.0,0.0001692]
[1741933338758,0.45604867,82177.0,82176.0,0.0001692]
[1741933338962,0.46004867,82177.0,82176.0,0.0001692]
[1741933340442,0.14788067,82177.0,82176.0,0.0001692]
[1741933341023,0.16004867,82177.0,82176.0,0.0001692]
[1741933341230,0.26623408,82177.0,82176.0,0.0001692]
[1741933345919,0.46004867,82177.0,82176.0,0.0001692]
[1741933349863,0.38074867,82177.0,82176.0,0.0001692]
[1741933354714,0.38108687,82177.0,82176.0,0.0001692]
[1741933361282,0.255554,82174.0,82173.0,0.0001692]
[1741933361484,0.55561,82156.0,82151.0,0.0009691]
[1741933361685,0.55561,82156.0,82155.0,0.00021902]
[1741933361884,0.55561,82156.0,82155.0,0.01189609]
[1741933362093,0.55561,82156.0,82155.0,0.00021902]
[1741933362313,0.55561,82156.0,82155.0,0.01189782]
[1741933362513,0.55561,82156.0,82155.0,0.00021902]
[1741933362719,0.3,82156.0,82155.0,0.02645324]
[1741933362915,0.3,82156.0,82155.0,0.01475987]
[1741933363072,0.3,82156.0,82155.0,0.02645324]
[1741933363275,0.312171,82156.0,82155.0,0.01191239]
[1741933364493,0.33125423,82156.0,82155.0,0.01191239]
[1741933364915,0.33325423,82156.0,82155.0,0.01191239]
[1741933365094,0.33125423,82156.0,82155.0,0.01191239]
[1741933365557,0.33225423,82156.0,82155.0,0.01191239]
[1741933367675,0.34129758,82156.0,82155.0,0.01191239]
[1741933369159,0.36408608,82156.0,82155.0,0.01191239]
[1741933369709,0.35191508,82156.0,82155.0,0.01191239]
[1741933370138,0.35191508,82156.0,82155.0,0.08991239]
[1741933372179,0.36408608,82156.0,82155.0,0.01191239]
[1741933373029,0.34129758,82156.0,82155.0,0.01191239]
[1741933374053,0.34129758,82156.0,82155.0,0.02645324]
[1741933374582,0.34129758,82156.0,82155.0,0.01475987]
[1741933375134,0.34329758,82156.0,82155.0,0.00021902]
[1741933375343,0.36508263,82156.0,82155.0,0.00021902]
[1741933375701,0.36708263,82156.0,82155.0,0.00021902]
[1741933378046,0.34429758,82156.0,82155.0,0.00021902]
[1741933378654,0.04429758,82156.0,82155.0,0.00021902]
[1741933378996,0.04429758,82156.0,82155.0,0.01194885]
[1741933382555,0.13853834,82156.0,82155.0,0.01194885]
[1741933382724,0.11945511,82156.0,82155.0,0.01194885]
[1741933385718,0.255623,82152.0,82151.0,0.0009691]
[1741933385859,0.555623,82152.0,82151.0,0.0009691]
[1741933386068,0.555629,82150.0,82149.0,1.96434434]
[1741933386252,0.678729,82150.0,82149.0,1.88480042]
[1741933386456,0.79868989,82150.0,82149.0,1.84817566]
[1741933386833,0.79868989,82150.0,82149.0,1.8115509]
[1741933387285,0.80368989,82150.0,82149.0,1.8115509]
[1741933387887,0.80868989,82150.0,82149.0,1.8115509]
[1741933388888,0.688729,82150.0,82149.0,1.8115509]
[1741933390083,0.611229,82150.0,82149.0,1.8115509]
[1741933390791,0.611229,82150.0,82149.0,1.8117201]
[1741933391343,0.611229,82150.0,82149.0,1.8234689]
[1741933396271,0.694029,82150.0,82149.0,1.8234689]
[1741933396476,0.81398989,82150.0,82149.0,1.8234689]
[1741933397645,0.611229,82150.0,82149.0,1.8234689]
[1741933397975,0.611229,82150.0,82149.0,1.64665671]
[1741933398379,0.687229,82150.0,82149.0,1.64665671]
[1741933398584,0.687229,82150.0,82149.0,1.63707671]
[1741933401933,0.687229,82150.0,82149.0,1.37323671]
[1741933402170,0.80718989,82150.0,82149.0,1.37323671]
[1741933403403,0.80752829,82150.0,82149.0,1.37323671]
[1741933404934,0.80752829,82150.0,82149.0,1.35942671]
[1741933406106,0.55189929,82150.0,82149.0,1.35942671]
[1741933406424,0.80752829,82150.0,82149.0,1.35942671]
[1741933409719,0.6115674,82150.0,82149.0,1.35942671]
[1741933412518,0.5659674,82150.0,82149.0,1.35942671]
[1741933412722,0.7044474,82150.0,82149.0,1.35942671]
[1741933413348,0.5659674,82150.0,82149.0,1.35942671]
[1741933420595,0.5659674,82150.0,82149.0,1.32280382]
[1741933420894,0.68592829,82150.0,82149.0,1.32280382]
[1741933428003,0.38592829,82150.0,82149.0,1.32280382]
[1741933429905,0.68592829,82150.0,82149.0,1.32280382]
[1741933430114,0.68592829,82150.0,82149.0,1.28858382]
[1741933431463,0.68592829,82150.0,82149.0,1.26817382]
[1741933434475,0.68592829,82150.0,82127.0,8e-05]
[1741933434476,0.555685,82132.0,82127.0,8e-05]
[1741933434692,0.54354,82122.0,82120.0,0.0814]
[1741933434902,0.312177,82121.0,82120.0,0.0814]
[1741933435377,0.3,82113.0,82112.0,0.0814]
[1741933436217,0.3,82113.0,82112.0,0.09594085]
[1741933437580,0.31909189,82113.0,82112.0,0.09594085]
[1741933440237,0.31909189,82113.0,82112.0,0.10858631]
[1741933440914,0.32209189,82113.0,82112.0,0.10858631]
[1741933441321,0.31909189,82113.0,82112.0,0.10858631]
[1741933446171,0.01909189,82113.0,82112.0,0.10858631]
[1741933449990,0.01909189,82113.0,82112.0,0.10875551]
[1741933456383,0.12899138,82122.0,82112.0,0.10875551]
[1741933456586,0.01909167,82117.0,82112.0,0.10875551]
[1741933456926,0.12899138,82122.0,82112.0,0.10875551]
[1741933457072,0.14193797,82122.0,82112.0,0.10875551]
[1741933457682,0.14493797,82122.0,82112.0,0.10875551]
[1741933459386,0.14493797,82122.0,82115.0,0.01454085]
[1741933459592,0.01909112,82120.0,82115.0,0.01454085]
[1741933459980,0.01909112,82120.0,82116.0,0.01267681]
[1741933460789,0.02009112,82120.0,82116.0,0.01267681]
[1741933461491,0.02009112,82120.0,82115.0,0.01454085]
[1741933461851,0.02009112,82120.0,82116.0,0.01267169]
[1741933462153,0.02009112,82120.0,82115.0,0.01454085]
[1741933462586,0.02109112,82120.0,82115.0,0.01454085]
[1741933463048,0.02009112,82120.0,82115.0,0.01454085]
[1741933463904,0.02109112,82120.0,82115.0,0.01454085]
[1741933466138,0.3,82119.0,82115.0,0.01454085]
[1741933466348,0.32109112,82120.0,82115.0,0.01454085]
[1741933466973,0.32009112,82120.0,82115.0,0.01454085]
[1741933467183,0.31909112,82120.0,82115.0,0.01454085]
[1741933467375,0.001,82119.0,82115.0,0.01454085]
[1741933467859,0.01909112,82120.0,82116.0,0.01267261]
[1741933467963,0.01909112,82120.0,82115.0,0.01454085]
[1741933469147,0.02009112,82120.0,82115.0,0.01454085]
[1741933469545,0.02109112,82120.0,82115.0,0.01454085]
[1741933471962,0.02109112,82120.0,82112.0,0.01471005]
[1741933472788,0.02009112,82120.0,82112.0,0.01471005]
[1741933473189,0.02109112,82120.0,82112.0,0.01471005]
[1741933473551,0.02009112,82120.0,82112.0,0.01471005]
[1741933473952,0.02109112,82120.0,82112.0,0.01471005]
[1741933474807,0.3,82117.0,82112.0,0.01471005]
[1741933475806,0.255734,82116.0,82112.0,0.01471005]
[1741933476957,0.012178,82113.0,82112.0,0.01471005]
[1741933479542,0.555736,82116.0,82112.0,0.01471005]
[1741933480283,0.3,82116.0,82112.0,0.01471005]
[1741933480500,0.25573,82118.0,82112.0,0.01471005]
[1741933480695,0.02009179,82116.0,82112.0,0.01471005]
[1741933481111,0.02109179,82116.0,82112.0,0.01471005]
[1741933481308,0.02009179,82116.0,82112.0,0.01471005]
[1741933482351,0.01909179,82116.0,82112.0,0.01471005]
[1741933483274,0.02009179,82116.0,82112.0,0.01471005]
[1741933483441,0.02109179,82116.0,82112.0,0.01471005]
[1741933485984,0.02109179,82116.0,82114.0,0.01454085]
[1741933486298,0.02109179,82116.0,82115.0,0.01268247]
[1741933486525,0.02109179,82116.0,82115.0,0.02722332]
[1741933486957,0.02009179,82116.0,82115.0,0.02722332]
[1741933487168,0.01909179,82116.0,82115.0,0.01454085]
[1741933487353,0.02109179,82116.0,82115.0,0.01454085]
[1741933487775,0.02009179,82116.0,82115.0,0.01454085]
[1741933487978,0.02109179,82116.0,82115.0,0.01454085]
[1741933489066,0.02009179,82116.0,82115.0,0.01454085]
[1741933489492,0.02109179,82116.0,82115.0,0.01454085]
[1741933497559,0.02109179,82116.0,82115.0,0.01470995]
[1741933499856,0.02109179,82116.0,82115.0,0.09000995]
[1741933507087,0.02109179,82116.0,82115.0,0.01470995]
[1741933507521,0.02109179,82116.0,82115.0,0.02739051]
[1741933507827,0.02109179,82116.0,82115.0,0.01470995]
[1741933509778,0.02109179,82116.0,82115.0,0.02739083]
[1741933512364,0.002,82116.0,82115.0,0.10609083]
[1741933512759,0.002,82116.0,82115.0,0.10989455]
[1741933515266,0.02109096,82116.0,82115.0,0.10989455]
[1741933516225,0.002,82116.0,82115.0,0.10989455]
[1741933519928,0.001,82116.0,82115.0,0.10989455]
[1741933520129,0.002,82116.0,82115.0,0.10989455]
[1741933520482,0.243491,82139.0,82115.0,0.10989455]
[1741933520483,0.01909006,82134.0,82117.0,0.0825]
[1741933520656,0.10945983,82132.0,82117.0,0.0825]
[1741933520852,0.10945983,82132.0,82118.0,0.09808165]
[1741933521080,0.01908934,82130.0,82118.0,0.09808165]
[1741933521485,0.03539237,82130.0,82118.0,0.09808165]
[1741933522259,0.03539237,82130.0,82119.0,0.00121753]
[1741933522678,0.03539237,82130.0,82121.0,0.01454085]
[1741933522877,0.03539237,82130.0,82123.0,0.01454085]
[1741933523282,0.03539237,82130.0,82125.0,0.01454085]
[1741933523679,0.03539237,82130.0,82123.0,0.01454085]
[1741933523880,0.03539237,82130.0,82127.0,0.01454085]
[1741933524103,0.03539237,82130.0,82123.0,0.00121752]
[1741933524104,0.03539237,82130.0,82124.0,0.01454085]
[1741933524304,0.03539237,82130.0,82129.0,0.01454085]
[1741933524504,0.03539237,82130.0,82126.0,0.01454085]
[1741933524706,0.03539237,82130.0,82129.0,0.03099673]
[1741933525305,0.03539237,82130.0,82129.0,0.11409673]
[1741933526335,0.03539237,82130.0,82129.0,0.03099673]
[1741933532227,0.03573057,82130.0,82129.0,0.03099673]
[1741933535489,0.03573057,82130.0,82129.0,0.03099673]
[1741933535996,0.01942754,82130.0,82129.0,0.03099673]
[1741933537882,0.0003382,82130.0,82129.0,0.03099673]
[1741933538439,0.0003382,82130.0,82129.0,0.02629034]
[1741933551633,0.0003382,82130.0,82129.0,0.10679034]
[1741933554807,0.0003382,82130.0,82129.0,0.24223034]
[1741933557534,0.0003382,82130.0,82129.0,0.24215034]
[1741933562615,0.12899138,82140.0,82130.0,0.01454085]
[1741933562848,0.12899138,82140.0,82132.0,0.01454085]
[1741933563017,0.14457315,82140.0,82132.0,0.01454085]
[1741933563231,0.14457315,82140.0,82130.0,0.01454085]
[1741933563399,0.14457315,82140.0,82132.0,0.01454085]
[1741933563816,0.14457315,82140.0,82134.0,0.01454085]
[1741933564025,0.14657315,82140.0,82134.0,0.01454085]
[1741933564232,0.14957315,82140.0,82136.0,0.01454085]
[1741933564457,0.15694223,82140.0,82136.0,0.01454085]
[1741933564688,0.15694223,82140.0,82138.0,0.01454085]
[1741933565090,0.15594223,82140.0,82130.0,0.01454085]
[1741933565302,0.15894223,82140.0,82130.0,0.01454085]
[1741933565525,0.15694223,82140.0,82132.0,0.01454085]
[1741933565779,0.15594223,82140.0,82132.0,0.01454085]
[1741933566012,0.15894223,82140.0,82130.0,0.01495166]
[1741933566242,0.15894223,82140.0,82134.0,0.01454085]
[1741933566691,0.15894223,82140.0,82136.0,0.01454085]
[1741933567097,0.15394223,82140.0,82130.0,0.01495166]
[1741933567317,0.15594223,82140.0,82130.0,0.01495166]
[1741933567519,0.15594223,82140.0,82132.0,0.01454085]
[1741933567683,0.01908744,82138.0,82132.0,0.01454085]
[1741933567885,0.01908744,82138.0,82130.0,0.01495166]
[1741933568087,0.01908744,82138.0,82134.0,0.01454085]
[1741933568548,0.01908744,82138.0,82136.0,0.01454085]
[1741933568979,0.02108744,82138.0,82130.0,0.01495166]
[1741933569158,0.02108744,82138.0,82132.0,0.01454085]
[1741933569508,0.02108744,82138.0,82134.0,0.01454085]
[1741933569804,0.02108744,82138.0,82132.0,0.01454085]
[1741933570024,0.02108744,82138.0,82134.0,0.01454085]
[1741933570466,0.01908744,82138.0,82136.0,0.01454085]
[1741933570870,0.02308744,82138.0,82132.0,0.01454085]
[1741933571032,0.02108744,82138.0,82137.0,0.0262806]
[1741933572309,0.01908744,82138.0,82137.0,0.0262806]